fUST/lending_fUST_20240429
["ID","MTS","AMOUNT","RATE_DAILY","PERIOD"]
[324898430,1714403454985,-534.54,0.00046849,30]
[324898431,1714403454995,-300.0,0.00046849,7]
[324898433,1714403455005,-500.0,0.00046849,30]
[324898436,1714403455015,-500.0,0.00046849,30]
[324898438,1714403455025,-500.0,0.00046849,30]
[324898440,1714403455035,-500.0,0.00046849,30]
[324898442,1714403455044,-500.0,0.00046849,30]
[324898444,1714403455055,-500.0,0.00046849,2]
[324898446,1714403455065,-1249.99,0.00046849,30]
[324898448,1714403455075,-654.11,0.00046849,30]
[324898450,1714403455084,-500.0,0.00046849,30]
[324898452,1714403455093,-151.0,0.00046849,3]
[324898453,1714403455103,-500.0,0.00046849,2]
[324898456,1714403455113,-500.0,0.00046849,30]
[324898458,1714403455123,-500.0,0.00046849,30]
[324898459,1714403455132,-500.0,0.00046849,30]
[324898462,1714403455141,-903.12,0.00046849,7]
[324898463,1714403455151,-500.0,0.00046849,30]
[324898465,1714403455160,-500.0,0.00046849,30]
[324898467,1714403455170,-1203.71,0.00046849,30]
[324898469,1714403455179,-809.28,0.00046849,30]
[324898471,1714403455188,-500.0,0.00046849,30]
[324898473,1714403455198,-500.29,0.00046849,30]
[324898476,1714403455207,-500.0,0.00046849,30]
[324898477,1714403455217,-500.0,0.00046849,30]
[324898479,1714403455226,-500.0,0.00046849,30]
[324898481,1714403455236,-160.98790829,0.00046849,30]
[324898484,1714403455246,-500.0,0.00046849,30]
[324898485,1714403455255,-408.64020841,0.00046849,30]
[324898487,1714403455264,-500.0,0.00046849,30]
[324898489,1714403455273,-500.0,0.00046849,30]
[324898492,1714403455283,-500.0,0.00046849,30]
[324898501,1714403455361,-500.0,0.00046849,30]
[324898503,1714403455370,-602.54,0.00046849,30]
[324898505,1714403455380,-520.25,0.00046849,30]
[324898507,1714403455390,-500.0,0.00046849,30]
[324898509,1714403455399,-151.0,0.00046849,7]
[324898511,1714403455408,-500.0,0.00046849,30]
[324898513,1714403455417,-1009.15,0.00046849,30]
[324898515,1714403455426,-500.0,0.00046849,30]
[324898517,1714403455435,-782.67,0.00046849,30]
[324898519,1714403455444,-500.0,0.00046849,30]
[324898521,1714403455453,-500.0,0.00046849,30]
[324898523,1714403455462,-1067.904186,0.00046849,7]
[324898525,1714403455471,-500.0,0.00046849,30]
[324898527,1714403455481,-214.46739613,0.00046849,30]
[324898529,1714403455490,-500.0,0.00046849,30]
[324898531,1714403455499,-1067.904186,0.00046849,7]
[324898533,1714403455508,-500.0,0.00046849,30]
[324898535,1714403455517,-519.15,0.00046849,30]
[324898537,1714403455527,-500.0,0.00046849,30]
[324898539,1714403455535,-615.64,0.00046849,30]
[324898541,1714403455544,-500.0,0.00046849,30]
[324898543,1714403455553,-500.0,0.00046849,30]
[324898545,1714403455562,-500.0,0.00046849,30]
[324898547,1714403455571,-500.0,0.00046849,30]
[324898549,1714403455582,-500.0,0.00046849,30]
[324898551,1714403455591,-151.0,0.00046849,7]
[324898553,1714403455601,-1092.826854,0.00046849,7]
[324898555,1714403455610,-872.67,0.00046849,30]
[324898557,1714403455620,-1092.826854,0.00046849,7]
[324898558,1714403455630,-500.0,0.00046849,30]
[324898560,1714403455640,-500.0,0.00046849,30]
[324898563,1714403455649,-500.0,0.00046849,30]
[324898564,1714403455659,-151.0,0.00046849,7]
[324898566,1714403455668,-500.0,0.00046849,30]
[324898569,1714403455678,-600.73,0.00046849,30]
[324898571,1714403455688,-500.0,0.00046849,30]
[324898573,1714403455698,-500.0,0.00046849,30]
[324898575,1714403455708,-505.91,0.00046849,30]
[324898577,1714403455717,-501.2,0.00046849,30]
[324898579,1714403455727,-850.95,0.00046849,30]
[324898581,1714403455737,-510.3,0.00046849,30]
[324898583,1714403455746,-151.0,0.00046849,7]
[324898585,1714403455755,-1103.47,0.00046849,30]
[324898587,1714403455765,-764.98,0.00046849,30]
[324898589,1714403455775,-296.991596,0.00046849,7]
[324898591,1714403455784,-500.0,0.00046849,30]
[324898593,1714403455794,-500.0,0.00046849,30]
[324898595,1714403455803,-500.0,0.00046849,30]
[324898597,1714403455812,-200.0,0.00046849,30]
[324898599,1714403455821,-500.0,0.00046849,30]
[324898601,1714403455830,-880.79,0.00046849,30]
[324898603,1714403455840,-500.0,0.00046849,30]
[324898605,1714403455849,-500.0,0.00046849,30]
[324898607,1714403455858,-502.4,0.00046849,30]
[324898609,1714403455868,-949.860443,0.00046849,7]
[324898611,1714403455877,-500.0,0.00046849,30]
[324898613,1714403455886,-949.860443,0.00046849,7]
[324898615,1714403455897,-500.0,0.00046849,30]
[324898617,1714403455907,-500.0,0.00046849,30]
[324898619,1714403455916,-541.86,0.00046849,30]
[324898621,1714403455927,-500.0,0.00046849,30]
[324898622,1714403455936,-500.0,0.00046849,30]
[324898623,1714403455945,-285.70800868,0.00046849,30]
[324898624,1714403455954,-7970.54,0.00046849,30]
[324898625,1714403455964,-176.60487412,0.00046849,30]
[324898626,1714403455978,-590.14,0.00046849,30]
[324898627,1714403455988,-500.0,0.00046849,30]
[324898628,1714403455997,-500.0,0.00046849,30]
[324898629,1714403456007,-151.0,0.00046849,7]
[324898630,1714403456018,-821.44,0.00046849,30]
[324898631,1714403456027,-780.18,0.00046849,30]
[324898632,1714403456037,-720.95,0.00046849,30]
[324898633,1714403456046,-500.0,0.00046849,30]
[324898635,1714403456057,-500.0,0.00046849,30]
[324898637,1714403456066,-500.0,0.00046849,30]
[324898639,1714403456075,-500.0,0.00046849,30]
[324898641,1714403456084,-1080.25,0.00046849,30]
[324898643,1714403456093,-500.0,0.00046849,30]
[324898645,1714403456102,-500.0,0.00046849,30]
[324898647,1714403456111,-500.0,0.00046849,30]
[324898649,1714403456121,-500.0,0.00046849,30]
[324898650,1714403456130,-500.0,0.00046849,30]
[324898652,1714403456139,-675.68,0.00046849,30]
[324898654,1714403456149,-151.0,0.00046849,7]
[324898656,1714403456159,-500.0,0.00046849,30]
[324898658,1714403456168,-500.0,0.00046849,30]
[324898660,1714403456177,-575.374773,0.00046849,7]
[324898662,1714403456186,-500.0,0.00046849,30]
[324898665,1714403456196,-500.0,0.00046849,30]
[324898666,1714403456205,-575.374773,0.00046849,7]
[324898669,1714403456214,-611.97,0.00046849,30]
[324898670,1714403456224,-151.0,0.00046849,7]
[324898672,1714403456233,-500.0,0.00046849,30]
[324898674,1714403456242,-505.7,0.00046849,30]
[324898676,1714403456251,-500.0,0.00046849,30]
[324898678,1714403456260,-187.23358882,0.00046849,30]
[324898680,1714403456270,-500.0,0.00046849,30]
[324898682,1714403456279,-815.51,0.00046849,30]
[324898684,1714403456288,-1100.15,0.00046849,30]
[324898686,1714403456297,-500.0,0.00046849,21]
[324898688,1714403456306,-500.0,0.00046849,30]
[324898690,1714403456316,-574.58,0.00046849,30]
[324898692,1714403456325,-500.0,0.00046849,30]
[324898694,1714403456335,-151.0,0.00046849,7]
[324898696,1714403456344,-500.0,0.00046849,30]
[324898698,1714403456353,-500.0,0.00046849,30]
[324898700,1714403456362,-500.0,0.00046849,30]
[324898703,1714403456372,-1000.812377,0.00046849,7]
[324898704,1714403456381,-500.0,0.00046849,30]
[324898707,1714403456390,-500.0,0.00046849,30]
[324898709,1714403456400,-1000.812377,0.00046849,7]
[324898711,1714403456410,-1146.41,0.00046849,30]
[324898713,1714403456419,-466.666828,0.00046849,7]
[324898715,1714403456427,-574.15,0.00046849,30]
[324898716,1714403456437,-500.0,0.00046849,30]
[324898718,1714403456447,-500.0,0.00046849,30]
[324898721,1714403456456,-466.666828,0.00046849,7]
[324898722,1714403456465,-500.0,0.00046849,30]
[324898725,1714403456475,-500.0,0.00046849,30]
[324898726,1714403456485,-500.0,0.00046849,30]
[324898729,1714403456494,-500.0,0.00046849,30]
[324898730,1714403456503,-500.0,0.00046849,30]
[324898732,1714403456513,-760.28,0.00046849,30]
[324898734,1714403456522,-500.0,0.00046849,30]
[324898736,1714403456531,-500.0,0.00046849,30]
[324898738,1714403456540,-500.0,0.00046849,30]
[324898740,1714403456550,-849.64,0.00046849,30]
[324898742,1714403456559,-615.33,0.00046849,30]
[324898744,1714403456569,-507.18,0.00046849,30]
[324898753,1714403456647,-500.0,0.00046849,30]
[324898755,1714403456657,-151.0,0.00046849,7]
[324898757,1714403456667,-500.0,0.00046849,30]
[324898759,1714403456677,-500.0,0.00046849,30]
[324898761,1714403456687,-500.0,0.00046849,30]
[324898763,1714403456696,-787.88,0.00046849,30]
[324898765,1714403456706,-500.0,0.00046849,30]
[324898767,1714403456716,-312.807001,0.00046849,7]
[324898769,1714403456725,-500.0,0.00046849,30]
[324898771,1714403456735,-502.11494474,0.00046849,30]
[324898773,1714403456744,-312.807001,0.00046849,7]
[324898775,1714403456754,-500.0,0.00046849,30]
[324898777,1714403456763,-712.0,0.00046849,30]
[324898779,1714403456772,-772.27,0.00046849,30]
[324898781,1714403456783,-500.0,0.00046849,30]
[324898783,1714403456793,-500.0,0.00046849,30]
[324898785,1714403456802,-500.0,0.00046849,30]
[324898787,1714403456811,-500.0,0.00046849,30]
[324898789,1714403456820,-638.16,0.00046849,30]
[324898791,1714403456830,-940.88,0.00046849,30]
[324898794,1714403456839,-706.66,0.00046849,30]
[324898795,1714403456848,-500.0,0.00046849,30]
[324898798,1714403456858,-500.0,0.00046849,30]
[324898799,1714403456867,-305.70787731,0.00046849,30]
[324898802,1714403456876,-573.44295148,0.00046849,30]
[324898804,1714403456886,-500.0,0.00046849,30]
[324898806,1714403456895,-500.0,0.00046849,30]
[324898807,1714403456905,-500.0,0.00046849,30]
[324898809,1714403456914,-500.0,0.00046849,30]
[324898811,1714403456922,-500.0,0.00046849,30]
[324898813,1714403456932,-151.0,0.00046849,7]
[324898815,1714403456941,-500.0,0.00046849,30]
[324898818,1714403456950,-500.0,0.00046849,30]
[324898819,1714403456960,-151.0,0.00046849,7]
[324898821,1714403456970,-302.016416,0.00046849,7]
[324898823,1714403456986,-500.0,0.00046849,30]
[324898825,1714403456995,-500.0,0.00046849,30]
[324898828,1714403457005,-500.0,0.00046849,30]
[324898829,1714403457014,-302.016416,0.00046849,7]
[324898831,1714403457026,-500.0,0.00046849,30]
[324898834,1714403457036,-500.0,0.00046849,30]
[324898835,1714403457053,-500.0,0.00046849,30]
[324898837,1714403457063,-500.0,0.00046849,30]
[324898840,1714403457073,-752.15,0.00046849,30]
[324898842,1714403457083,-590.87,0.00046849,30]
[324898844,1714403457092,-500.0,0.00046849,30]
[324898846,1714403457101,-987.93,0.00046849,30]
[324898848,1714403457111,-500.0,0.00046849,30]
[324898850,1714403457120,-500.0,0.00046849,30]
[324898852,1714403457133,-292.68277718,0.00046849,30]
[324898854,1714403457142,-582.66,0.00046849,30]
[324898856,1714403457151,-500.0,0.00046849,30]
[324898858,1714403457161,-569.047712,0.00046849,7]
[324898860,1714403457170,-190.869089,0.00046849,7]
[324898862,1714403457181,-500.0,0.00046849,30]
[324898864,1714403457191,-500.0,0.00046849,30]
[324898866,1714403457200,-627.5,0.00046849,30]
[324898868,1714403457210,-190.869089,0.00046849,7]
[324898870,1714403457219,-500.0,0.00046849,30]
[324898872,1714403457229,-569.047712,0.00046849,7]
[324898874,1714403457239,-500.0,0.00046849,30]
[324898876,1714403457248,-500.0,0.00046849,30]
[324898878,1714403457258,-189.69342505,0.00046849,30]
[324898880,1714403457267,-500.0,0.00046849,30]
[324898882,1714403457277,-902.95,0.00046849,30]
[324898884,1714403457286,-500.0,0.00046849,30]
[324898886,1714403457296,-500.0,0.00046849,30]
[324898888,1714403457305,-615.913097,0.00046849,7]
[324898890,1714403457314,-500.0,0.00046849,30]
[324898892,1714403457324,-615.913097,0.00046849,7]
[324898894,1714403457333,-730.68,0.00046849,30]
[324898896,1714403457342,-500.0,0.00046849,30]
[324898898,1714403457352,-500.0,0.00046849,30]
[324898900,1714403457362,-500.0,0.00046849,30]
[324898902,1714403457371,-599.07,0.00046849,30]
[324898904,1714403457385,-500.0,0.00046849,30]
[324898906,1714403457395,-572.62,0.00046849,30]
[324898909,1714403457404,-500.0,0.00046849,30]
[324898911,1714403457413,-500.0,0.00046849,30]
[324898913,1714403457424,-500.0,0.00046849,30]
[324898915,1714403457434,-959784.78326724,0.000469,2]
[324898917,1714403457443,-151.0,0.000469,7]
[324898919,1714403457452,-151.0,0.000469,7]
[324898921,1714403457461,-151.0,0.000469,7]
[324898923,1714403457471,-151.0,0.000469,7]
[324898925,1714403457480,-216.445419,0.000469,3]
[324898927,1714403457490,-151.0,0.000469,7]
[324898928,1714403457499,-1067.904186,0.000469,7]
[324898931,1714403457508,-1067.904186,0.000469,7]
[324898932,1714403457518,-202.717343,0.000469,7]
[324898935,1714403457529,-1092.826854,0.000469,7]
[324898937,1714403457538,-1092.826854,0.000469,7]
[324898938,1714403457547,-151.0,0.000469,7]
[324898940,1714403457558,-151.0,0.000469,7]
[324898943,1714403457568,-949.860443,0.000469,7]
[324898945,1714403457578,-949.860443,0.000469,7]
[324898946,1714403457587,-151.0,0.000469,7]
[324898948,1714403457597,-151.0,0.000469,7]
[324898951,1714403457607,-575.374773,0.000469,7]
[324898952,1714403457616,-575.374773,0.000469,7]
[324898954,1714403457626,-151.0,0.000469,7]
[324898956,1714403457635,-151.0,0.000469,7]
[324898958,1714403457645,-1000.812377,0.000469,7]
[324898960,1714403457654,-1000.812377,0.000469,7]
[324898962,1714403457663,-466.666828,0.000469,7]
[324898964,1714403457672,-466.666828,0.000469,7]
[324898966,1714403457681,-151.0,0.000469,7]
[324898968,1714403457691,-312.807001,0.000469,7]
[324898971,1714403457700,-312.807001,0.000469,7]
[324898973,1714403457710,-151.0,0.000469,7]
[324898975,1714403457720,-302.016416,0.000469,7]
[324898976,1714403457729,-151.0,0.000469,7]
[324898977,1714403457739,-302.016416,0.000469,7]
[324898978,1714403457748,-569.047712,0.000469,7]
[324898979,1714403457757,-190.869089,0.000469,7]
[324898980,1714403457766,-190.869089,0.000469,7]
[324898981,1714403457776,-569.047712,0.000469,7]
[324898982,1714403457785,-615.913097,0.000469,7]
[324898983,1714403457794,-615.913097,0.000469,7]
[324898987,1714403457865,-221.65555556,0.00046904,120]
[324898989,1714403457875,-4000.79817593,0.00047,5]
[324898991,1714403457886,-20432.65692429,0.00047,4]
[324898993,1714403457896,-160.541666,0.00047006,2]
[324898996,1714403457906,-10012.96353715,0.000471,120]
[324898998,1714403457916,-500.0,0.00047123,30]
[324899000,1714403457925,-500.0,0.00047123,30]
[324899002,1714403457935,-500.0,0.00047123,30]
[324899003,1714403457944,-500.0,0.00047123,30]
[324899005,1714403457953,-500.0,0.00047123,30]
[324899008,1714403457963,-262.13422985,0.00047123,30]
[324899009,1714403457978,-500.0,0.00047123,30]
[324899012,1714403457987,-554.38,0.00047123,30]
[324899013,1714403457997,-500.0,0.00047123,30]
[324899015,1714403458007,-500.0,0.00047123,30]
[324899018,1714403458017,-500.0,0.00047123,30]
[324899019,1714403458026,-692.31,0.00047123,30]
[324899021,1714403458035,-500.0,0.00047123,30]
[324899023,1714403458045,-500.0,0.00047123,30]
[324899026,1714403458056,-500.0,0.00047123,30]
[324899028,1714403458065,-500.0,0.00047123,30]
[324899030,1714403458075,-540.76487656,0.00047123,30]
[324899032,1714403458084,-500.0,0.00047123,30]
[324899034,1714403458093,-645.73,0.00047123,30]
[324899036,1714403458104,-500.0,0.00047123,30]
[324899038,1714403458113,-500.0,0.00047123,30]
[324899040,1714403458122,-500.0,0.00047123,30]
[324899042,1714403458132,-500.0,0.00047123,30]
[324899044,1714403458141,-500.0,0.00047123,30]
[324899046,1714403458150,-500.0,0.00047123,30]
[324899047,1714403458160,-558.78546741,0.00047123,30]
[324899050,1714403458170,-500.0,0.00047123,30]
[324899052,1714403458179,-500.0,0.00047123,30]
[324899054,1714403458189,-580.34,0.00047123,30]
[324899056,1714403458198,-609.19,0.00047123,30]
[324899058,1714403458207,-500.0,0.00047123,30]
[324899060,1714403458217,-500.0,0.00047123,30]
[324899062,1714403458227,-500.0,0.00047123,30]
[324899064,1714403458236,-617.22521777,0.00047123,30]
[324899065,1714403458246,-698.28,0.00047123,30]
[324899068,1714403458256,-500.0,0.00047123,30]
[324899069,1714403458267,-500.0,0.00047123,30]
[324899071,1714403458276,-593.74,0.00047123,30]
[324899074,1714403458286,-564.98995069,0.00047123,30]
[324899076,1714403458295,-517.52,0.00047123,30]
[324899078,1714403458304,-260.1937474,0.00047123,30]
[324899079,1714403458314,-500.0,0.00047123,30]
[324899082,1714403458323,-332.82,0.00047123,30]
[324899084,1714403458332,-475.27821245,0.00047123,30]
[324899085,1714403458341,-580.52,0.00047123,30]
[324899087,1714403458351,-500.0,0.00047123,30]
[324899089,1714403458360,-500.0,0.00047123,30]
[324899092,1714403458369,-500.0,0.00047123,30]
[324899093,1714403458380,-500.0,0.00047123,30]
[324899096,1714403458390,-660.77,0.00047123,30]
[324899097,1714403458399,-500.0,0.00047123,30]
[324899099,1714403458409,-500.02,0.00047123,30]
[324899101,1714403458418,-500.0,0.00047123,30]
[324899104,1714403458428,-500.0,0.00047123,30]
[324899106,1714403458437,-500.0,0.00047123,30]
[324899108,1714403458447,-500.0,0.00047123,30]
[324899110,1714403458456,-500.0,0.00047123,30]
[324899111,1714403458466,-500.0,0.00047123,30]
[324899113,1714403458476,-500.0,0.00047123,30]
[324899115,1714403458485,-572.38,0.00047123,30]
[324899117,1714403458495,-500.0,0.00047123,14]
[324899119,1714403458504,-500.0,0.00047123,30]
[324899122,1714403458514,-594.15,0.00047123,30]
[324899123,1714403458523,-500.0,0.00047123,30]
[324899126,1714403458533,-500.0,0.00047123,30]
[324899127,1714403458542,-500.0,0.00047123,30]
[324899129,1714403458551,-500.0,0.00047123,30]
[324899131,1714403458561,-500.0,0.00047123,30]
[324899133,1714403458571,-500.0,0.00047123,30]
[324899136,1714403458580,-500.0,0.00047123,30]
[324899138,1714403458589,-500.0,0.00047123,30]
[324899139,1714403458598,-500.0,0.00047123,30]
[324899142,1714403458608,-500.0,0.00047123,30]
[324899144,1714403458617,-957.76,0.00047123,30]
[324899145,1714403458627,-500.0,0.00047123,30]
[324899148,1714403458636,-500.0,0.00047123,30]
[324899150,1714403458646,-400.68158219,0.00047123,30]
[324899152,1714403458655,-881.98,0.00047123,30]
[324899153,1714403458664,-500.0,0.00047123,30]
[324899155,1714403458673,-379.98478294,0.00047123,30]
[324899158,1714403458683,-500.0,0.00047123,30]
[324899159,1714403458692,-905.7,0.00047123,30]
[324899161,1714403458701,-500.0,0.00047123,30]
[324899163,1714403458710,-500.0,0.00047123,30]
[324899165,1714403458720,-882.72,0.00047123,120]
[324899167,1714403458730,-500.0,0.00047123,30]
[324899170,1714403458739,-590.06598449,0.00047123,30]
[324899172,1714403458749,-500.0,0.00047123,3]
[324899174,1714403458758,-500.0,0.00047123,30]
[324899175,1714403458767,-500.0,0.00047123,30]
[324899177,1714403458777,-500.0,0.00047123,30]
[324899179,1714403458787,-500.0,0.00047123,30]
[324899182,1714403458796,-476.69842979,0.00047123,30]
[324899184,1714403458806,-500.0,0.00047123,30]
[324899186,1714403458816,-652.74,0.00047123,30]
[324899187,1714403458826,-511.12054512,0.00047123,30]
[324899190,1714403458835,-534.54,0.00047123,30]
[324899192,1714403458845,-300.0,0.00047123,7]
[324899193,1714403458855,-500.0,0.00047123,30]
[324899195,1714403458864,-500.0,0.00047123,30]
[324899197,1714403458874,-500.0,0.00047123,30]
[324899199,1714403458883,-500.0,0.00047123,30]
[324899202,1714403458893,-500.0,0.00047123,30]
[324899203,1714403458903,-500.0,0.00047123,2]
[324899212,1714403458974,-1249.99,0.00047123,30]
[324899214,1714403458986,-654.11,0.00047123,30]
[324899216,1714403458996,-500.0,0.00047123,30]
[324899218,1714403459005,-500.0,0.00047123,2]
[324899220,1714403459016,-500.0,0.00047123,30]
[324899222,1714403459025,-500.0,0.00047123,30]
[324899223,1714403459035,-163.69985227,0.00047123,30]
[324899225,1714403459044,-903.12,0.00047123,7]
[324899227,1714403459057,-500.0,0.00047123,30]
[324899229,1714403459067,-1203.71,0.00047123,30]
[324899231,1714403459076,-809.28,0.00047123,30]
[324899233,1714403459086,-500.0,0.00047123,30]
[324899235,1714403459095,-500.29,0.00047123,30]
[324899237,1714403459104,-500.0,0.00047123,30]
[324899239,1714403459114,-500.0,0.00047123,30]
[324899241,1714403459123,-156.19612734,0.00047123,30]
[324899243,1714403459133,-500.0,0.00047123,30]
[324899244,1714403459142,-500.0,0.00047123,30]
[324899247,1714403459152,-500.0,0.00047123,30]
[324899249,1714403459162,-500.0,0.00047123,30]
[324899251,1714403459172,-358.23380476,0.00047123,30]
[324899253,1714403459181,-602.54,0.00047123,30]
[324899255,1714403459190,-520.25,0.00047123,30]
[324899257,1714403459200,-590.50101137,0.00047123,30]
[324899258,1714403459209,-500.0,0.00047123,30]
[324899261,1714403459219,-1009.15,0.00047123,30]
[324899262,1714403459228,-782.67,0.00047123,30]
[324899265,1714403459238,-500.0,0.00047123,30]
[324899267,1714403459248,-500.0,0.00047123,30]
[324899269,1714403459258,-500.0,0.00047123,30]
[324899271,1714403459268,-500.0,0.00047123,30]
[324899273,1714403459278,-519.15,0.00047123,30]
[324899275,1714403459289,-500.0,0.00047123,30]
[324899277,1714403459299,-615.64,0.00047123,30]
[324899279,1714403459308,-500.0,0.00047123,30]
[324899281,1714403459318,-500.0,0.00047123,30]
[324899283,1714403459327,-500.0,0.00047123,30]
[324899285,1714403459337,-500.0,0.00047123,30]
[324899287,1714403459346,-500.0,0.00047123,30]
[324899289,1714403459356,-872.67,0.00047123,30]
[324899291,1714403459365,-500.0,0.00047123,30]
[324899293,1714403459374,-500.0,0.00047123,30]
[324899295,1714403459387,-500.0,0.00047123,30]
[324899297,1714403459396,-600.73,0.00047123,30]
[324899298,1714403459407,-500.0,0.00047123,30]
[324899299,1714403459416,-500.0,0.00047123,30]
[324899300,1714403459426,-505.91,0.00047123,30]
[324899301,1714403459435,-501.2,0.00047123,30]
[324899302,1714403459444,-850.95,0.00047123,30]
[324899303,1714403459454,-510.3,0.00047123,30]
[324899304,1714403459463,-1103.47,0.00047123,30]
[324899305,1714403459472,-764.98,0.00047123,30]
[324899306,1714403459482,-500.0,0.00047123,30]
[324899307,1714403459492,-500.0,0.00047123,30]
[324899308,1714403459501,-200.0,0.00047123,30]
[324899310,1714403459511,-500.0,0.00047123,30]
[324899312,1714403459520,-880.79,0.00047123,30]
[324899314,1714403459529,-500.0,0.00047123,30]
[324899316,1714403459538,-500.0,0.00047123,30]
[324899318,1714403459548,-502.4,0.00047123,30]
[324899320,1714403459559,-170.38569996,0.00047123,30]
[324899322,1714403459568,-315.21947189,0.00047123,30]
[324899324,1714403459577,-500.0,0.00047123,30]
[324899326,1714403459587,-541.86,0.00047123,30]
[324899328,1714403459597,-500.0,0.00047123,30]
[324899330,1714403459606,-500.0,0.00047123,30]
[324899332,1714403459616,-7970.54,0.00047123,30]
[324899334,1714403459627,-590.14,0.00047123,30]
[324899336,1714403459636,-500.0,0.00047123,30]
[324899338,1714403459645,-500.0,0.00047123,30]
[324899340,1714403459654,-821.44,0.00047123,30]
[324899342,1714403459663,-780.18,0.00047123,30]
[324899344,1714403459673,-720.95,0.00047123,30]
[324899345,1714403459682,-500.0,0.00047123,30]
[324899346,1714403459691,-500.0,0.00047123,30]
[324899347,1714403459700,-500.0,0.00047123,30]
[324899348,1714403459710,-500.0,0.00047123,30]
[324899349,1714403459719,-1080.25,0.00047123,30]
[324899350,1714403459729,-500.0,0.00047123,30]
[324899351,1714403459738,-500.0,0.00047123,30]
[324899352,1714403459747,-500.0,0.00047123,30]
[324899353,1714403459757,-500.0,0.00047123,30]
[324899354,1714403459767,-500.0,0.00047123,30]
[324899355,1714403459776,-675.68,0.00047123,30]
[324899356,1714403459785,-500.0,0.00047123,30]
[324899357,1714403459795,-500.0,0.00047123,30]
[324899358,1714403459804,-611.97,0.00047123,30]
[324899359,1714403459813,-500.0,0.00047123,30]
[324899360,1714403459823,-505.7,0.00047123,30]
[324899361,1714403459833,-500.0,0.00047123,30]
[324899362,1714403459842,-500.0,0.00047123,30]
[324899363,1714403459852,-815.51,0.00047123,30]
[324899364,1714403459862,-1100.15,0.00047123,30]
[324899365,1714403459871,-500.0,0.00047123,21]
[324899366,1714403459882,-500.0,0.00047123,30]
[324899367,1714403459892,-574.58,0.00047123,30]
[324899368,1714403459903,-500.0,0.00047123,30]
[324899369,1714403459913,-500.0,0.00047123,30]
[324899370,1714403459922,-225.39,0.00047123,30]
[324899371,1714403459932,-500.0,0.00047123,30]
[324899372,1714403460003,-500.0,0.00047123,30]
[324899373,1714403460014,-1146.41,0.00047123,30]
[324899374,1714403460024,-574.15,0.00047123,30]
[324899375,1714403460035,-500.0,0.00047123,30]
[324899376,1714403460045,-500.0,0.00047123,30]
[324899377,1714403460056,-500.0,0.00047123,30]
[324899378,1714403460067,-500.0,0.00047123,30]
[324899379,1714403460076,-500.0,0.00047123,30]
[324899380,1714403460086,-500.0,0.00047123,30]
[324899381,1714403460095,-500.0,0.00047123,30]
[324899382,1714403460105,-760.28,0.00047123,30]